bitfinex-derivatives/quotes_BTCF0:USTF0_20250527
["timestamp","ask_amount","ask_price","bid_price","bid_amount"]
[1748330820191,1.1456249,109220.0,109210.0,0.0644]
[1748330820596,1.1456249,109220.0,109210.0,0.0334]
[1748330820803,1.27517401,109220.0,109210.0,0.0354]
[1748330822199,1.27517401,109220.0,109210.0,0.004]
[1748330822400,1.27517401,109220.0,109210.0,0.01786553]
[1748330823501,1.27517401,109220.0,109210.0,0.08176553]
[1748330823702,1.23565221,109220.0,109210.0,0.08176553]
[1748330824303,0.6941431,109220.0,109210.0,0.08176553]
[1748330824504,1.1061431,109220.0,109210.0,0.08176553]
[1748330825699,1.11053492,109220.0,109210.0,0.08176553]
[1748330825904,1.11053492,109220.0,109210.0,0.01786553]
[1748330826295,1.24008403,109220.0,109210.0,0.01786553]
[1748330829198,1.60088403,109220.0,109210.0,0.01786553]
[1748330829407,0.1830798,109210.0,109200.0,0.09533751]
[1748330829703,0.73492891,109210.0,109200.0,0.00013751]
[1748330830705,1.14696891,109210.0,109200.0,0.00013751]
[1748330830903,1.14696891,109210.0,109200.0,0.03113751]
[1748330831406,1.14696891,109210.0,109200.0,0.06663751]
[1748330831907,1.14696891,109210.0,109200.0,0.08319022]
[1748330832807,1.14696891,109210.0,109200.0,0.08019022]
[1748330833007,1.0174198,109210.0,109200.0,0.07719022]
[1748330833208,1.14696891,109210.0,109200.0,0.07819022]
[1748330833406,0.78616891,109210.0,109200.0,0.07819022]
[1748330834308,0.6566198,109210.0,109200.0,0.07819022]
[1748330834607,0.78616891,109210.0,109200.0,0.07819022]
[1748330835710,0.78616891,109210.0,109200.0,0.01569022]
[1748330836410,0.6566198,109210.0,109200.0,0.01569022]
[1748330836610,0.37412891,109210.0,109200.0,0.01569022]
[1748330836910,1.19964891,109210.0,109200.0,0.01569022]
[1748330838305,1.19964891,109210.0,109200.0,1e-08]
[1748330838614,1.56044891,109210.0,109200.0,1e-08]
[1748330839209,0.1831133,109190.0,109180.0,0.0837044]
[1748330839405,0.72474241,109190.0,109180.0,0.0837044]
[1748330839708,0.78684241,109190.0,109180.0,0.0511044]
[1748330840011,0.78684241,109190.0,109180.0,0.03397388]
[1748330840212,0.78684241,109190.0,109180.0,0.04758713]
[1748330840403,0.78684241,109190.0,109180.0,0.05258713]
[1748330841412,1.20032241,109190.0,109180.0,0.05258713]
[1748330841609,1.20032241,109190.0,109180.0,0.05658713]
[1748330841913,1.20032241,109190.0,109180.0,0.00837388]
[1748330842214,1.69919839,109190.0,109180.0,0.002]
[1748330842514,1.79076219,109190.0,109180.0,0.002]
[1748330842917,1.83023134,109190.0,109180.0,0.002]
[1748330844712,1.92181934,109190.0,109180.0,0.002]
[1748330844918,0.31267921,109180.0,109170.0,0.00013751]
[1748330845121,0.40817921,109180.0,109170.0,0.00013751]
[1748330846211,0.40817921,109180.0,109170.0,0.00113751]
[1748330847218,0.40817921,109180.0,109170.0,0.00213751]
[1748330848123,0.76897921,109180.0,109170.0,0.00213751]
[1748330849422,0.80841153,109180.0,109170.0,0.00213751]
[1748330851513,0.85977153,109180.0,109170.0,0.39293751]
[1748330851822,0.82939153,109180.0,109170.0,0.43583751]
[1748330852022,0.78995921,109180.0,109170.0,0.43583751]
[1748330852320,0.6604101,109180.0,109170.0,0.43583751]
[1748330852522,0.78995921,109180.0,109170.0,0.07503751]
[1748330853721,0.1831469,109170.0,109160.0,0.33858898]
[1748330853928,0.2465469,109170.0,109160.0,0.45858898]
[1748330854720,0.2465469,109170.0,109160.0,0.46058898]
[1748330854926,0.2465469,109170.0,109160.0,0.64575268]
[1748330855222,0.1831469,109170.0,109160.0,1.11690578]
[1748330855425,0.1832669,109170.0,109160.0,1.72046578]
[1748330855615,0.1832669,109170.0,109160.0,1.30690578]
[1748330855827,0.17039281,109180.0,109170.0,0.1831469]
[1748330855828,0.32063671,109180.0,109170.0,0.1831469]
[1748330856021,0.32063671,109180.0,109170.0,0.6239469]
[1748330857017,0.35165671,109180.0,109170.0,0.6505469]
[1748330857218,0.35165671,109180.0,109170.0,0.6749469]
[1748330857919,0.35165671,109180.0,109170.0,0.7665429]
[1748330858226,0.22906531,109180.0,109170.0,0.89609201]
[1748330858424,0.22918531,109180.0,109170.0,0.89609201]
[1748330858727,0.22918531,109180.0,109170.0,1.0165429]
[1748330859626,0.22918531,109180.0,109170.0,1.03367342]
[1748330860620,0.26208531,109180.0,109170.0,0.94207742]
[1748330860821,0.22918531,109180.0,109170.0,0.94207742]
[1748330863635,0.00025751,109180.0,109170.0,0.94207742]
[1748330863833,0.00013751,109180.0,109170.0,0.94207742]
[1748330864134,0.00025751,109180.0,109170.0,0.94207742]
[1748330864329,0.18338761,109180.0,109170.0,0.94207742]
[1748330865327,0.21348761,109180.0,109170.0,0.94207742]
[1748330865635,0.21348761,109180.0,109170.0,1.35423742]
[1748330867635,0.24608761,109180.0,109170.0,1.35423742]
[1748330870135,0.24608761,109180.0,109170.0,0.94207742]
[1748330870326,0.24608761,109180.0,109170.0,1.35423742]
[1748330873234,0.24608761,109180.0,109170.0,0.89107742]
[1748330873433,0.24608761,109180.0,109170.0,1.30375742]
[1748330873635,0.27738761,109180.0,109170.0,1.33035742]
[1748330874941,0.27738761,109180.0,109170.0,1.3132269]
[1748330877941,0.24608761,109180.0,109170.0,1.46717601]
[1748330878240,0.24596761,109180.0,109170.0,1.48457164]
[1748330878439,0.24608761,109180.0,109170.0,1.48457164]
[1748330879741,0.24608761,109180.0,109170.0,1.35502253]
[1748330880838,0.06295751,109180.0,109170.0,1.05449601]
[1748330881045,0.0457727,109210.0,109200.0,0.1830969]
[1748330881340,0.2288588,109210.0,109200.0,1.0565769]
[1748330881644,0.2609588,109210.0,109200.0,1.1121769]
[1748330881935,0.2609588,109210.0,109200.0,0.92908]
[1748330882126,0.2610788,109210.0,109200.0,1.12957634]
[1748330882332,0.2931588,109210.0,109200.0,1.15617634]
[1748330882530,0.2942788,109210.0,109200.0,1.40617634]
[1748330883342,0.2941588,109210.0,109200.0,1.41024105]
[1748330883642,0.2942788,109210.0,109200.0,1.41024105]
[1748330883828,0.2942788,109210.0,109200.0,1.45954802]
[1748330887042,0.2942788,109210.0,109200.0,1.43514802]
[1748330887942,0.2942788,109210.0,109200.0,1.40854802]
[1748330888641,0.2942788,109210.0,109200.0,1.35924105]
[1748330889142,0.2942788,109210.0,109200.0,1.37661855]
[1748330889834,0.2942788,109210.0,109200.0,1.40321855]
[1748330890338,0.2942788,109210.0,109200.0,1.3817544]
[1748330890536,0.06542,109210.0,109200.0,1.51130351]
[1748330890735,0.0653,109210.0,109200.0,1.51130351]
[1748330890935,0.0653,109210.0,109200.0,1.53570351]
[1748330891635,0.06442,109210.0,109200.0,1.53570351]
[1748330891834,0.06342,109210.0,109200.0,1.53570351]
[1748330893546,0.06342,109210.0,109200.0,1.94774351]
[1748330895144,0.06342,109210.0,109200.0,2.29116601]
[1748330895645,0.06342,109210.0,109200.0,2.34047298]
[1748330896944,0.06342,109210.0,109200.0,1.92843298]
[1748330897241,0.06342,109210.0,109200.0,2.34047298]
[1748330897444,0.2465003,109210.0,109200.0,1.49135298]
[1748330897632,0.2465003,109210.0,109200.0,1.74696387]
[1748330898038,0.25089212,109210.0,109200.0,1.74692387]
[1748330898439,0.25089212,109210.0,109200.0,1.84453469]
[1748330898738,0.25089212,109210.0,109200.0,1.87113469]
[1748330899040,0.06542,109210.0,109200.0,1.87113469]
[1748330899343,0.2485004,109210.0,109200.0,1.89553469]
[1748330900445,0.2485004,109210.0,109200.0,1.87113469]
[1748330901148,0.2485004,109210.0,109200.0,1.85376601]
[1748330901446,0.06542,109210.0,109200.0,1.85376601]
[1748330902048,0.2485004,109210.0,109200.0,1.85376601]
[1748330902747,0.2485004,109210.0,109200.0,1.90307298]
[1748330903246,0.2485004,109210.0,109200.0,1.92453713]
[1748330904148,0.06542,109210.0,109200.0,1.92453713]
[1748330904335,0.2485004,109210.0,109200.0,1.92453713]
[1748330904539,0.2485004,109210.0,109200.0,1.73718802]
[1748330905752,0.2485004,109210.0,109200.0,1.75457225]
[1748330906748,0.2485004,109210.0,109200.0,1.70526528]
[1748330907349,0.2485004,109210.0,109200.0,1.68788105]
[1748330915054,0.2485004,109210.0,109200.0,1.84403016]
[1748330915253,0.2483804,109210.0,109200.0,1.84403016]
[1748330915461,0.2485004,109210.0,109200.0,1.84403016]
[1748330916452,0.2485004,109210.0,109200.0,1.86843016]
[1748330916854,0.2485004,109210.0,109200.0,1.91813565]
[1748330918854,0.06542,109210.0,109200.0,1.91813565]
[1748330919357,0.0653,109210.0,109200.0,1.91813565]
[1748330919654,0.06542,109210.0,109200.0,1.91813565]
[1748330922049,0.06442,109210.0,109200.0,1.86843016]
[1748330922248,0.06442,109210.0,109200.0,1.71682996]
[1748330922858,0.06342,109210.0,109200.0,1.71682996]
[1748330923256,0.06342,109210.0,109200.0,1.69536581]
[1748330924060,0.06342,109210.0,109200.0,1.49696601]
[1748330925451,0.06342,109210.0,109200.0,0.9556969]
[1748330925747,0.06342,109210.0,109200.0,1.90808601]
[1748330927260,0.06342,109210.0,109200.0,1.49608601]
[1748330927462,0.06342,109210.0,109200.0,1.90808601]
[1748330928360,0.2465004,109210.0,109200.0,1.7785369]
[1748330928551,0.2465004,109210.0,109200.0,1.3421369]
[1748330928758,0.2465004,109210.0,109200.0,1.7275369]
[1748330929256,0.2465004,109210.0,109200.0,1.7557369]
[1748330929446,0.2465004,109210.0,109200.0,1.77720105]
[1748330929957,0.2475004,109210.0,109200.0,1.77720105]
[1748330930354,0.2485004,109210.0,109200.0,1.77720105]
[1748330931065,0.2485004,109210.0,109200.0,1.90675016]
[1748330931459,0.2485004,109210.0,109200.0,1.49475016]
[1748330931652,0.2485004,109210.0,109200.0,1.90675016]
[1748330931852,0.2485004,109210.0,109200.0,1.77720105]
[1748330932559,0.2485004,109210.0,109200.0,0.92616105]
[1748330932760,0.2485004,109210.0,109200.0,1.33700105]
[1748330933762,0.2485004,109210.0,109200.0,0.92616105]
[1748330933963,0.2485004,109210.0,109200.0,1.33700105]
[1748330938064,0.2485004,109210.0,109200.0,0.92616105]
[1748330938557,0.2485004,109210.0,109200.0,0.74306415]
[1748330938757,0.2485004,109210.0,109200.0,0.94359154]
[1748330940263,0.2485004,109210.0,109200.0,0.58279154]
[1748330940764,0.25289222,109210.0,109200.0,0.58279154]
[1748330941761,0.2485004,109210.0,109200.0,0.58279154]
[1748330942670,0.2485004,109210.0,109200.0,0.56132739]
[1748330943766,0.2485004,109210.0,109200.0,0.37823029]
[1748330944065,0.2485004,109210.0,109200.0,0.56132739]
[1748330947974,0.79008951,109210.0,109200.0,0.37823029]
[1748330948163,0.79008951,109210.0,109200.0,0.01743029]
[1748330948664,0.1830971,109200.0,109190.0,0.10397701]
[1748330948962,0.73714621,109200.0,109190.0,0.08251286]
[1748330949971,0.89562911,109200.0,109180.0,0.05016575]
[1748330950162,1.52748301,109190.0,109180.0,0.01867785]
[1748330950368,0.1831307,109180.0,109170.0,0.00137404]
[1748330950571,0.37637981,109180.0,109170.0,0.00137404]
[1748330950772,0.2468307,109180.0,109170.0,0.00137404]
[1748330951669,0.37637981,109180.0,109170.0,0.00137404]
[1748330953177,0.40817981,109180.0,109170.0,0.00137404]
[1748330957780,0.82029981,109180.0,109170.0,0.00137404]
[1748330957976,0.6907507,109180.0,109170.0,0.18452144]
[1748330958175,0.6907507,109180.0,109170.0,0.39487404]
[1748330958381,0.6908707,109180.0,109170.0,0.39487404]
[1748330958680,0.6908707,109180.0,109170.0,0.03407404]
[1748330958870,0.6908707,109180.0,109170.0,0.00137404]
[1748330963080,0.82041981,109180.0,109170.0,0.00137404]
[1748330963782,0.40829981,109180.0,109170.0,0.00137404]
[1748330963980,0.82045981,109180.0,109170.0,0.00137404]
[1748330965389,0.2461507,109180.0,109170.0,0.5439471]
[1748330965576,0.2461507,109180.0,109170.0,0.6057471]
[1748330965879,0.2460307,109180.0,109170.0,0.6057471]
[1748330966085,0.2461507,109180.0,109170.0,0.6057471]
[1748330966288,0.2461507,109180.0,109170.0,0.4226]
[1748330966677,0.2461507,109180.0,109170.0,0.6057471]
[1748330970388,0.2461507,109180.0,109170.0,0.3893]
[1748330972289,0.25054252,109180.0,109170.0,0.3893]
[1748330973391,0.1831471,109170.0,109160.0,0.44016832]
[1748330973691,0.2483471,109170.0,109160.0,0.43616832]
[1748330973889,0.6915071,109170.0,109160.0,0.04686832]
[1748330974388,0.82105621,109170.0,109160.0,0.01416832]
[1748330974591,0.82105621,109170.0,109160.0,0.01616832]
[1748330975185,1.23121621,109170.0,109160.0,0.08616832]
[1748330975383,1.23121621,109170.0,109160.0,0.08816832]
[1748330976587,1.59201621,109170.0,109160.0,0.08816832]
[1748330978096,1.4624671,109170.0,109160.0,0.08816832]
[1748330978296,1.59201621,109170.0,109160.0,0.08816832]
[1748330978591,1.27202455,109170.0,109160.0,0.08816832]
[1748330981494,1.63286455,109170.0,109160.0,0.08816832]
[1748330981799,0.32015544,109170.0,109160.0,0.63213222]
[1748330982294,0.32015544,109170.0,109160.0,0.69123222]
[1748330982497,0.32027544,109170.0,109160.0,0.69123222]
[1748330982693,0.32015544,109170.0,109160.0,0.69123222]
[1748330982895,0.32027544,109170.0,109160.0,0.69123222]
[1748330983090,0.73247544,109170.0,109160.0,0.69123222]
[1748330985103,0.32027544,109170.0,109160.0,0.69123222]
[1748330985400,0.73247544,109170.0,109160.0,0.69123222]
[1748330985798,0.73247544,109170.0,109160.0,0.50806832]
[1748330985988,0.82121621,109170.0,109160.0,0.14726832]
[1748330986193,0.76981621,109170.0,109160.0,0.08816832]
[1748330986393,1.18201621,109170.0,109160.0,0.08816832]
[1748330989000,1.22273687,109170.0,109160.0,0.08816832]
[1748330989198,0.68098776,109170.0,109160.0,0.08816832]
[1748330989404,0.28918776,109170.0,109160.0,0.47736832]
[1748330989601,0.28918776,109170.0,109160.0,0.51026832]
[1748330989903,0.28918776,109170.0,109160.0,0.69343222]
[1748330990200,0.28906776,109170.0,109160.0,0.51026832]
[1748330990501,0.28918776,109170.0,109160.0,0.51026832]
[1748330990701,0.28918776,109170.0,109160.0,0.69343222]
[1748330994910,0.2484671,109170.0,109160.0,0.69343222]
[1748330995598,0.6607071,109170.0,109160.0,0.69343222]
[1748330997199,0.6607071,109170.0,109160.0,0.710777]
[1748330998617,0.03322,109170.0,109160.0,0.84032611]
[1748330998824,0.37750688,109190.0,109180.0,0.1831303]
[1748330999019,0.09043908,109190.0,109180.0,0.77347941]
[1748330999220,0.05703908,109190.0,109180.0,1.14253941]
[1748330999422,0.05703908,109190.0,109180.0,1.80333941]
[1748330999915,0.00013751,109190.0,109180.0,1.80333941]
[1748331000118,0.00125751,109190.0,109180.0,1.83173941]
[1748331000317,0.00113751,109190.0,109180.0,1.83173941]
[1748331000512,0.00225751,109190.0,109180.0,1.83173941]
[1748331000723,0.00213751,109190.0,109180.0,1.83173941]
[1748331001111,0.00225751,109190.0,109180.0,1.83173941]
[1748331001724,0.18537111,109190.0,109180.0,2.1143903]
[1748331001925,0.24907111,109190.0,109180.0,2.1143903]
[1748331002123,0.24907111,109190.0,109180.0,2.24393941]
[1748331002322,0.24907111,109190.0,109180.0,2.29306733]
[1748331004527,0.24907111,109190.0,109180.0,2.16351822]
[1748331004729,0.24907111,109190.0,109180.0,2.29306733]
[1748331005922,0.06595751,109190.0,109180.0,2.29306733]
[1748331006129,0.06595751,109190.0,109180.0,2.31070445]
[1748331006422,0.06595751,109190.0,109180.0,1.89850445]
[1748331006931,0.03275751,109190.0,109180.0,1.89850445]
[1748331007616,0.00125751,109190.0,109180.0,1.89850445]
[1748331007823,0.03323751,109190.0,109180.0,1.89850445]
[1748331008022,0.03335751,109190.0,109180.0,1.89850445]
[1748331008223,0.03235751,109190.0,109180.0,1.89850445]
[1748331008822,0.03235751,109190.0,109180.0,1.88086733]
[1748331009125,0.1830659,109220.0,109210.0,0.1830803]
[1748331009329,0.0324,109220.0,109210.0,0.9546803]
[1748331009520,0.1831835,109220.0,109210.0,0.9870803]
[1748331009716,0.1830635,109220.0,109210.0,1.11662941]
[1748331009931,0.1830635,109220.0,109210.0,1.14478851]
[1748331010119,0.1831835,109220.0,109210.0,1.14478851]
[1748331010631,0.2459835,109220.0,109210.0,1.19859081]
[1748331010831,0.2469835,109220.0,109210.0,1.19859081]
[1748331011527,0.2469835,109220.0,109210.0,1.49859081]
[1748331011830,0.2479835,109220.0,109210.0,1.49859081]
[1748331012027,0.2479835,109220.0,109210.0,1.3690417]
[1748331012230,0.2479835,109220.0,109210.0,1.49859081]
[1748331012435,0.06492,109220.0,109210.0,1.49859081]
[1748331012621,0.2479836,109220.0,109210.0,1.3690417]
[1748331012818,0.06492,109220.0,109210.0,1.49859081]
[1748331013018,0.2479836,109220.0,109210.0,1.3690417]
[1748331013926,0.06492,109220.0,109210.0,1.3690417]
[1748331014130,0.2479836,109220.0,109210.0,1.49859081]
[1748331014331,0.2479836,109220.0,109210.0,1.3690417]
[1748331016822,0.06492,109220.0,109210.0,1.49859081]
[1748331017330,0.0648,109220.0,109210.0,1.3690417]
[1748331017637,0.06492,109220.0,109210.0,1.49859081]
[1748331018437,0.06492,109220.0,109210.0,1.3690417]
[1748331018740,0.06392,109220.0,109210.0,1.49859081]
[1748331019236,0.06292,109220.0,109210.0,1.49859081]
[1748331019536,0.2459836,109220.0,109210.0,1.49859081]
[1748331019737,0.2459836,109220.0,109210.0,1.8243217]
[1748331020035,0.2459836,109220.0,109210.0,1.2774418]
[1748331020239,0.25037542,109220.0,109210.0,1.2774418]
[1748331021536,0.25237542,109220.0,109210.0,1.2774418]
[1748331022031,0.06931182,109220.0,109210.0,1.40699091]
[1748331022237,0.06919182,109220.0,109210.0,1.46899091]
[1748331022431,0.25525542,109220.0,109210.0,1.46899091]
[1748331022933,0.07219182,109220.0,109210.0,1.3394418]
[1748331023129,0.25537542,109220.0,109210.0,1.46899091]
[1748331023330,0.06831182,109220.0,109210.0,1.46899091]
[1748331023628,0.06931182,109220.0,109210.0,1.46899091]
[1748331024133,0.25237542,109220.0,109210.0,1.46899091]
[1748331025130,0.06931182,109220.0,109210.0,1.46899091]
[1748331025634,0.25237542,109220.0,109210.0,1.46899091]
[1748331026539,0.25237542,109220.0,109210.0,1.11899091]
[1748331026738,0.25237542,109220.0,109210.0,0.9894418]
[1748331026937,0.25237542,109220.0,109210.0,1.11899091]
[1748331027732,0.25237542,109220.0,109210.0,0.9894418]
[1748331027938,0.25237542,109220.0,109210.0,1.11899091]
[1748331028140,0.25237542,109220.0,109210.0,0.9894418]
[1748331028331,0.25237542,109220.0,109210.0,1.11899091]
[1748331029541,0.25237542,109220.0,109210.0,0.9894418]
[1748331029838,0.25237542,109220.0,109210.0,1.1366032]
[1748331031942,0.25237542,109220.0,109210.0,1.00705409]
[1748331032143,0.25237542,109220.0,109210.0,1.1366032]
[1748331033235,0.06931182,109220.0,109210.0,1.1366032]
[1748331033433,0.06919182,109220.0,109210.0,1.1366032]
[1748331033638,0.06931182,109220.0,109210.0,1.1366032]
[1748331034244,0.06931182,109220.0,109210.0,0.97151751]
[1748331034843,0.06919182,109220.0,109210.0,0.97151751]
[1748331035044,0.06931182,109220.0,109210.0,0.97151751]
[1748331035745,0.06931182,109220.0,109210.0,0.95390522]
[1748331036644,0.06931182,109220.0,109210.0,1.00292082]
[1748331037843,0.06931182,109220.0,109210.0,1.20379277]
[1748331041942,0.00651182,109220.0,109210.0,1.29535677]
[1748331042851,0.00639182,109220.0,109210.0,1.29535677]
[1748331043043,0.00651182,109220.0,109210.0,1.29535677]
[1748331044451,0.00013751,109230.0,109220.0,0.1830636]
[1748331044651,0.00013751,109230.0,109220.0,1.63751271]
[1748331044853,0.00013751,109230.0,109220.0,1.65987263]
[1748331045044,0.03203751,109230.0,109220.0,1.65987263]
[1748331045250,0.03203751,109230.0,109220.0,1.67346769]
[1748331045553,0.01164611,109250.0,109240.0,0.1830301]
[1748331045867,0.2287603,109260.0,109250.0,0.1830133]
[1748331046047,0.2287603,109260.0,109250.0,0.34526241]
[1748331046251,0.2287603,109260.0,109250.0,0.2157133]
[1748331046450,0.2288803,109260.0,109250.0,0.2157133]
[1748331046650,0.2288803,109260.0,109250.0,0.23357957]
[1748331047856,0.2338803,109260.0,109250.0,0.2167133]
[1748331048753,0.3289803,109260.0,109250.0,0.2167133]
[1748331049158,0.3289803,109260.0,109250.0,0.5775133]
[1748331049750,0.33337212,109260.0,109250.0,0.5775133]
[1748331057161,0.69417212,109260.0,109250.0,0.001]
[1748331057363,0.33337212,109260.0,109250.0,0.001]
[1748331059265,0.33337212,109260.0,109250.0,0.31356291]
[1748331059762,0.33337212,109260.0,109250.0,0.67436291]
[1748331059962,0.33337212,109260.0,109250.0,0.70576291]
[1748331060361,0.33325212,109260.0,109250.0,0.5762138]
[1748331060554,0.33337212,109260.0,109250.0,0.5762138]
[1748331061763,0.33337212,109260.0,109250.0,0.6063138]
[1748331061764,0.33325212,109260.0,109250.0,0.6063138]
[1748331062262,0.33337212,109260.0,109250.0,0.6063138]
[1748331062862,0.33337212,109260.0,109250.0,0.6379138]
[1748331063364,0.30275212,109260.0,109250.0,0.6379138]
[1748331063564,0.30287212,109260.0,109250.0,0.6379138]
[1748331063966,0.07411182,109260.0,109250.0,0.76746291]
[1748331064155,0.3201711,109290.0,109260.0,0.182997]
[1748331064361,0.0572,109280.0,109270.0,0.7335647]
[1748331064561,0.0572,109280.0,109270.0,1.0943647]
[1748331064957,0.43011664,109300.0,109290.0,0.1829468]
[1748331065265,0.41551623,109300.0,109290.0,0.5437468]
[1748331065457,0.33023786,109300.0,109290.0,0.6051468]
[1748331065658,0.11712116,109300.0,109290.0,0.74866646]
[1748331066065,0.11712116,109300.0,109290.0,0.78156646]
[1748331066259,0.11700116,109300.0,109290.0,1.19336646]
[1748331066464,0.11700116,109300.0,109290.0,1.42461735]
[1748331066667,0.11712116,109300.0,109290.0,1.55416646]
[1748331066964,0.11700116,109300.0,109290.0,1.42461735]
[1748331067169,0.30005136,109300.0,109290.0,1.42461735]
[1748331067373,0.30005136,109300.0,109290.0,1.55416646]
[1748331067571,0.33225136,109300.0,109290.0,1.55416646]
[1748331067871,0.33625136,109300.0,109290.0,1.55416646]
[1748331068273,0.33625136,109300.0,109290.0,1.57203273]
[1748331069175,0.33625136,109300.0,109290.0,1.57843188]
[1748331069771,0.33625136,109300.0,109290.0,1.44888277]
[1748331069974,0.33625136,109300.0,109290.0,0.94278277]
[1748331070166,0.33625136,109300.0,109290.0,0.39903597]
[1748331070368,0.33625136,109300.0,109290.0,0.61298287]
[1748331070571,0.33625136,109300.0,109290.0,1.16783198]
[1748331070774,0.15332116,109300.0,109290.0,1.57959198]
[1748331070971,0.08952116,109300.0,109290.0,1.57959198]
[1748331071272,0.08940116,109300.0,109290.0,1.57959198]
[1748331071671,0.08952116,109300.0,109290.0,1.57959198]
[1748331071873,0.08940116,109300.0,109290.0,1.57959198]
[1748331072172,0.08552116,109300.0,109290.0,1.57959198]
[1748331072375,0.08540116,109300.0,109290.0,1.58059198]
[1748331072575,0.08552116,109300.0,109290.0,1.58059198]
[1748331072773,0.03193751,109310.0,109290.0,1.80163709]
[1748331072970,0.031,109320.0,109310.0,0.1829134]
[1748331073169,0.031,109320.0,109310.0,1.08502251]
[1748331073473,0.3074334,109330.0,109320.0,0.1828967]
[1748331073673,0.2159899,109330.0,109320.0,0.73624581]
[1748331073875,0.1828899,109330.0,109320.0,0.73624581]
[1748331074175,0.21400091,109340.0,109330.0,0.18288]
[1748331074369,0.21400091,109340.0,109330.0,1.65750911]
[1748331074569,0.24710091,109340.0,109330.0,1.65750911]
[1748331074771,0.24722091,109340.0,109330.0,1.52796]
[1748331074973,0.24722091,109340.0,109330.0,1.65750911]
[1748331075172,0.24722091,109340.0,109330.0,1.52796]
[1748331075477,0.24722091,109340.0,109330.0,1.65750911]
[1748331076573,0.24722091,109340.0,109330.0,1.5278]
[1748331076774,0.24722091,109340.0,109330.0,0.4556]
[1748331076974,0.24722091,109340.0,109330.0,1.11612]
[1748331077473,0.24922091,109340.0,109330.0,1.24566911]
[1748331077685,0.24922091,109340.0,109330.0,1.5278]
[1748331079180,0.25361273,109340.0,109330.0,0.63848]
[1748331079480,0.25361273,109340.0,109330.0,1.52772]
[1748331083583,0.25361273,109340.0,109330.0,1.65726911]
[1748331084183,0.25361273,109340.0,109330.0,1.65718911]
[1748331086890,0.25361273,109340.0,109330.0,1.52764]
[1748331087186,0.25361273,109340.0,109330.0,1.65718911]
[1748331089085,0.25361273,109340.0,109330.0,1.62480911]
[1748331089586,0.25361273,109340.0,109330.0,1.49526]
[1748331091090,0.25361273,109340.0,109330.0,1.0837]
[1748331093692,0.25361273,109340.0,109330.0,0.57438]
[1748331094085,0.25361273,109340.0,109330.0,0.70392911]
[1748331095292,0.25361273,109340.0,109330.0,0.57438]
[1748331096194,0.25361273,109340.0,109330.0,0.60698]
[1748331096385,0.25361273,109340.0,109330.0,0.73652911]
[1748331097193,0.25349273,109340.0,109330.0,0.73652911]
[1748331097694,0.25349273,109340.0,109330.0,0.60698]
[1748331097896,0.25349273,109340.0,109330.0,0.73652911]
[1748331098096,0.25361273,109340.0,109330.0,0.73652911]
[1748331098292,0.25361273,109340.0,109330.0,1.22344911]
[1748331098492,0.25561273,109340.0,109330.0,1.22344911]
[1748331099196,0.25561273,109340.0,109330.0,1.0939]
[1748331099497,0.25561273,109340.0,109330.0,1.22344911]
[1748331100198,0.25561273,109340.0,109330.0,1.0939]
[1748331100398,0.25561273,109340.0,109330.0,1.22344911]
[1748331101897,0.25561273,109340.0,109330.0,1.11176627]
[1748331102088,0.07274933,109340.0,109330.0,1.24131538]
[1748331102295,0.00852933,109340.0,109330.0,1.24131538]
[1748331102489,0.00864933,109340.0,109330.0,1.24131538]
[1748331102900,0.00852933,109340.0,109330.0,1.24131538]
[1748331103095,0.00864933,109340.0,109330.0,1.24580903]
[1748331103394,0.00864933,109340.0,109330.0,1.11625992]
[1748331103600,0.00864933,109340.0,109330.0,1.24580903]
[1748331103998,0.00864933,109340.0,109330.0,1.11625992]
[1748331104191,0.00864933,109340.0,109330.0,1.24580903]
[1748331105094,0.04154933,109340.0,109330.0,1.24580903]
[1748331105492,0.04154933,109340.0,109330.0,1.11625992]
[1748331105692,0.04154933,109340.0,109330.0,1.24580903]
[1748331106595,0.00864933,109340.0,109330.0,1.24580903]
[1748331107500,0.03894933,109340.0,109330.0,1.24580903]
[1748331107693,0.03894933,109340.0,109330.0,1.2636708]
[1748331107897,0.03894933,109340.0,109330.0,1.13412169]
[1748331108093,0.03894933,109340.0,109330.0,1.2636708]
[1748331108289,0.03894933,109340.0,109330.0,1.13412169]
[1748331108504,0.03894933,109340.0,109330.0,1.2636708]
[1748331108900,0.00864933,109340.0,109330.0,1.13412169]
[1748331109202,0.00864933,109340.0,109330.0,0.64720169]
[1748331109392,0.00864933,109340.0,109330.0,1.2636308]
[1748331109703,0.00852933,109340.0,109330.0,1.2636308]
[1748331110104,0.00864933,109340.0,109330.0,1.2636308]
[1748331110301,0.00864933,109340.0,109330.0,1.13408169]
[1748331110605,0.00864933,109340.0,109330.0,1.24127088]
[1748331111802,0.19151253,109340.0,109330.0,1.24127088]
[1748331112001,0.19151253,109340.0,109330.0,1.22340911]
[1748331112207,0.19151253,109340.0,109330.0,1.09386]
[1748331112403,0.19151253,109340.0,109330.0,1.22340911]
[1748331113207,0.00864933,109340.0,109330.0,1.22340911]
[1748331114300,0.19151263,109340.0,109330.0,1.50534]
[1748331114505,0.25591263,109340.0,109330.0,1.63488911]
[1748331115009,0.00864933,109340.0,109330.0,1.50534]
[1748331115204,0.04613418,109360.0,109350.0,0.1828465]
[1748331115505,0.232828,109370.0,109360.0,0.1828298]
[1748331115708,0.05,109370.0,109360.0,1.24177891]
[1748331116003,0.05012,109370.0,109360.0,1.68549891]
[1748331116198,0.05,109370.0,109360.0,1.68549891]
[1748331116399,0.05,109370.0,109360.0,1.69894468]
[1748331116598,0.05012,109370.0,109360.0,1.79038067]
[1748331116798,0.05612,109370.0,109360.0,1.79038067]
[1748331117014,0.2389331,109370.0,109360.0,1.66083156]
[1748331117197,0.05,109370.0,109360.0,1.66083156]
[1748331117509,0.05512,109370.0,109360.0,1.66083156]
[1748331117699,0.05512,109370.0,109360.0,1.81262067]
[1748331118098,0.05812,109370.0,109360.0,1.68307156]
[1748331118299,0.058,109370.0,109360.0,1.73582004]
[1748331118500,0.058,109370.0,109360.0,1.86536915]
[1748331118805,0.05812,109370.0,109360.0,1.73582004]
[1748331119002,0.05812,109370.0,109360.0,1.86536915]
[1748331119309,0.05512,109370.0,109360.0,1.86536915]
[1748331119515,0.05412,109370.0,109360.0,1.73582004]
[1748331119708,0.05412,109370.0,109360.0,0.83477316]
[1748331120010,0.05412,109370.0,109360.0,1.77393316]
[1748331121396,0.05412,109370.0,109360.0,1.64438405]
[1748331121705,0.2369331,109370.0,109360.0,1.77393316]
[1748331122219,0.2701331,109370.0,109360.0,1.77393316]
[1748331122406,0.08732,109370.0,109360.0,1.77393316]
[1748331122600,0.08732,109370.0,109360.0,1.59110336]
[1748331122806,0.08732,109370.0,109360.0,1.77393316]
[1748331124111,0.30552492,109370.0,109360.0,1.64438405]
[1748331124313,0.30552492,109370.0,109360.0,1.77393316]
[1748331125009,0.12271182,109370.0,109360.0,1.77393316]
[1748331125313,0.30552492,109370.0,109360.0,1.77393316]
[1748331125517,0.30552492,109370.0,109360.0,1.79173668]
[1748331126009,0.30552492,109370.0,109360.0,1.25070757]